[Event "AUT Bundesliga 2024-25"]
[Site "Austria"]
[Date "2025.04.05"]
[Round "10.25"]
[White "Saric, Ivan"]
[Black "Dragnev, Valentin"]
[Result "1-0"]
[Annotator "RC"]
[ECO "D02"]
[WhiteElo "2659"]
[BlackElo "2538"]
[PlyCount "81"]
[EventDate "2024.08.28"]
[EventType "team-tourn"]
[EventCountry "AUT"]
[SourceTitle "playchess.com"]
[Source "ChessBase"]
[SourceQuality "1"]
[TimeControl "40/5400+30:1800+30"]

1. Nf3 {[%emt 0:00:03]} d5 {[%emt 0:00:20]} 2. g3 {[%emt 0:00:04]} Nc6 {[%emt 0:00:24]} 3. d4 {[%emt 0:00:18]} Bf5 {[%emt 0:00:05]} 4. Bg2 {[%emt 0:00:19]} Nb4 {[%emt 0:00:15]} 5. Na3 {[%emt 0:00:14]} e6 {[%emt 0:00:08]} 6. O-O {[%emt 0:04:18]} Be7 {[%emt 0:00:26]} 7. c3 {[%emt 0:04:12]} Nc6 {[%emt 0:00:06]} 8. Nc2 {[%emt 0:01:03]} Be4 {[%emt 0:00:46]} 9. Nce1 {[%emt 0:05:46]} Nf6 {[%emt 0:00:27]} 10. Nd3 {[%emt 0:00:08]} h6 {[%emt 0:00:54]} 11. b4 {[%emt 0:06:01]} a5 {[%emt 0:16:20]} 12. b5 {[%emt 0:01:08]} Na7 {[%emt 0:00:07]} 13. a4 {[%emt 0:01:06]} b6 {[%emt 0:06:05]} 14. Qb3 {[%emt 0:05:25]} O-O {[%emt 0:01:38]} 15. Nfe5 {[%emt 0:03:15]} Qc8 {[%emt 0:15:11]} 16. f3 {[%emt 0:10:59]} Bh7 {[%emt 0:05:32]} 17. c4 {[%emt 0:05:17]} c6 {[%emt 0:06:45]} 18. cxd5 {[%emt 0:18:10]} cxd5 {[%emt 0:01:19]} 19. Bf4 {[%emt 0:01:57]} g5 {[%emt 0:05:49]} 20. Be3 {[%emt 0:01:15]} Qb7 {[%emt 0:00:36]} 21. h4 {[%emt 0:12:02]} Nd7 {[%emt 0:06:09]} 22. hxg5 {[%emt 0:01:04]} hxg5 {[%emt 0:00:27]} 23. f4 {[%emt 0:00:26]} f6 {[%emt 0:02:37]} 24. Nxd7 {[%emt 0:00:06]} Qxd7 {[%emt 0:00:03]} 25. fxg5 {[%emt 0:00:10]} fxg5 {[%emt 0:00:13]} 26. Ne5 {[%emt 0:00:04]} Qd6 {[%emt 0:01:17]} 27. Rac1 {[%emt 0:05:28]} Rxf1+ {[%emt 0:04:36]} 28. Rxf1 {[%emt 0:00:25]} Rf8 {[%emt 0:08:27]} 29. Rxf8+ {[%emt 0:00:14]} Kxf8 {[%emt 0:00:13]} 30. Qd1 {[%emt 0:03:43]} Kg7 {[%emt 0:01:17]} 31. Qf1 {[%emt 0:03:56]} Bf6 {[%emt 0:03:55]} 32. Qc1 {[%emt 0:02:32]} Bf5 {[%emt 0:08:59]} 33. Bxg5 {[%emt 0:01:05]} Bxe5 {[%emt 0:00:14]} 34. dxe5 {[%emt 0:00:03]} Qxe5 {[%emt 0:00:08]} 35. Bh4 {[%emt 0:01:35]} Qxe2 {[%emt 0:01:23]} 36. Qg5+ {[%emt 0:00:47]} Kh7 {[%emt 0:00:36]} 37. Qe7+ {[%emt 0:00:05]} Kh6 {[%emt 0:01:08]} 38. Bg5+ {[%emt 0:02:13]} Kh5 {[%emt 0:01:19]} 39. Qg7 {[%emt 0:00:17]} Bg6 {[%emt 0:02:16]} 40. Qh6+ {[%emt 0:00:06]} Kg4 {[%emt 0:00:04]} 41. Qh4+ {[%emt 0:30:10]} 1-0

[Event "AUT Bundesliga 2024-25"]
[Site "Austria"]
[Date "2025.04.05"]
[Round "10.26"]
[White "Banusz, Tamas"]
[Black "Brkic, Ante"]
[Result "1/2-1/2"]
[Annotator "RC"]
[ECO "D02"]
[WhiteElo "2592"]
[BlackElo "2586"]
[PlyCount "62"]
[EventDate "2024.08.28"]
[EventType "team-tourn"]
[EventCountry "AUT"]
[SourceTitle "playchess.com"]
[Source "ChessBase"]
[SourceQuality "1"]
[TimeControl "40/5400+30:1800+30"]

1. Nf3 {[%emt 0:00:05]} d5 {[%emt 0:00:07]} 2. d4 {[%emt 0:00:06]} Nf6 {[%emt 0:00:04]} 3. Bf4 {[%emt 0:00:07]} c5 {[%emt 0:00:22]} 4. e3 {[%emt 0:00:06]} e6 {[%emt 0:00:26]} 5. c3 {[%emt 0:04:25]} Qb6 {[%emt 0:01:11]} 6. Qb3 {[%emt 0:02:30]} Bd7 {[%emt 1:31:20]} 7. Nbd2 {[%emt 0:02:21]} Bc6 {[%emt 0:00:00]} 8. Be2 {[%emt 0:00:57]} Nbd7 {[%emt 0:00:00]} 9. h3 {[%emt 0:06:20]} Be7 {[%emt 0:00:00]} 10. O-O {[%emt 0:00:08]} O-O {[%emt 0:00:00]} 11. Rfc1 {[%emt 0:10:01]} Rfc8 {[%emt 0:00:00]} 12. Bh2 {[%emt 0:05:57]} h6 {[%emt 0:00:00]} 13. Rab1 {[%emt 0:03:49]} Bf8 {[%emt 0:00:00]} 14. Qd1 {[%emt 0:02:08]} a5 {[%emt 0:00:00]} 15. a4 {[%emt 0:08:29]} Qd8 {[%emt 0:00:00]} 16. b3 {[%emt 0:00:54]} b6 {[%emt 0:00:00]} 17. Qf1 {[%emt 0:03:03]} Bb7 {[%emt 0:00:00]} 18. Ne5 {[%emt 0:07:41]} cxd4 {[%emt 0:00:00]} 19. exd4 {[%emt 0:03:24]} Nxe5 {[%emt 0:00:00]} 20. Bxe5 {[%emt 0:00:49]} Ne4 {[%emt 0:00:00]} 21. Nxe4 {[%emt 0:00:25]} dxe4 {[%emt 0:00:00]} 22. Rc2 {[%emt 0:05:16]} Bd6 {[%emt 0:00:00]} 23. Bxd6 {[%emt 0:00:05]} Qxd6 {[%emt 0:00:00]} 24. Rd1 {[%emt 0:04:49]} Qa3 {[%emt 0:00:00]} 25. Bc4 {[%emt 0:05:14]} Rc7 {[%emt 0:00:00]} 26. Qe2 {[%emt 0:01:33]} Rac8 {[%emt 0:00:00]} 27. Ra2 {[%emt 0:03:33]} Qd6 {[%emt 0:00:00]} 28. Rc2 {[%emt 0:00:11]} Qa3 {[%emt 0:00:00]} 29. Ra2 {[%emt 0:00:20]} Qd6 {[%emt 0:00:00]} 30. Rc2 {[%emt 0:00:05]} Qa3 {[%emt 0:00:00]} 31. Ra2 {[%emt 0:00:13]} Qd6 {[%emt 0:00:00]} 1/2-1/2

[Event "AUT Bundesliga 2024-25"]
[Site "Austria"]
[Date "2025.04.05"]
[Round "10.27"]
[White "Martinovic, Sasa"]
[Black "Blohberger, Felix"]
[Result "1/2-1/2"]
[Annotator "TA"]
[ECO "D41"]
[WhiteElo "2549"]
[BlackElo "2511"]
[PlyCount "47"]
[EventDate "2024.08.28"]
[EventType "team-tourn"]
[EventCountry "AUT"]
[SourceTitle "playchess.com"]
[Source "ChessBase"]
[SourceQuality "1"]
[TimeControl "40/5400+30:1800+30"]

{[%evp 11,47,30,46,38,42,-9,22,26,30,33,35,25,39,29,32,18,17,0,0,0,0,0,0,0,0,0,0,0,0,0,0,0,0,0,0,0,0,0]} 1. d4 {[%emt 0:00:03]} Nf6 {[%emt 0:00:06]} 2. c4 {[%emt 0:00:03]} e6 {[%emt 0:00:05][%cal Be7e6,Be6d5,Bd5e4][%mdl 32]} 3. Nf3 {[%emt 0:00:04]} d5 {[%emt 0:00:04]} 4. Nc3 {[%emt 0:00:05]} c5 {[%emt 0:00:13]} 5. cxd5 {[%emt 0:00:19]} cxd4 {[%emt 0:00:19]} 6. Qxd4 {[%emt 0:00:16]} exd5 {[%emt 0:00:09]} 7. e4 {[%emt 0:00:22] D41: Queen's Gambit Declined: Semi-Tarrasch with 5 cxd5.} dxe4 {[%emt 0:00:28]} 8. Qxd8+ {[%emt 0:00:07]} Kxd8 {[%emt 0:00:05]} 9. Ng5 {[%emt 0:00:06][%csl LRe4,LRf7]} Be6 {[%emt 0:00:11]} 10. Nxe6+ {[%emt 0:00:25]} fxe6 {[%emt 0:00:07]} 11. Bg5 {[%emt 0:00:24]} Nc6 {[%emt 0:00:52][%cal Bb8c6,Bc6e5,Be5d3][%mdl 32]} 12. O-O-O+ {[%emt 0:01:10]} Ke8 {[%emt 0:01:17]} 13. Bc4 {[%emt 0:00:30]} Ne5 {[%emt 0:01:12] The position is equal.} 14. Bxe6 {[%emt 0:00:21] [#]} Nd3+ {[%emt 0:00:09]} 15. Kc2 {[%emt 0:00:20]} Nxf2 {[%emt 0:00:49]} 16. Bxf6 {[%emt 0:00:16] A strong pair of Bishops.} Nxd1 {[%emt 0:01:12]} (16... gxf6 17. Rd7 (17. Bd7+ $2 Kf7 $19) 17... Rc8 (17... Nxh1 $2 {is the wrong capture.} 18. Nd5 $18) 18. Rf1 $18 (18. Rxb7 Rxc3+ 19. Kxc3 Nxh1 $17)) 17. Rxd1 {[%emt 0:00:17]} gxf6 {[%emt 1:31:42]} 18. Rd7 {[%emt 0:00:37][%cal Oc3d5] [#] and Nd5! would now be decisive} Rd8 {[%emt 0:00:00]} 19. Rxb7 {[%emt 0:00:11][%csl Gb7][%cal Re6f7]} Rd6 $1 {[%emt 0:00:00]} 20. Bc4 {[%emt 0:00:55]} Rd4 $5 $146 {[%emt 0:00:00][%mdl 8] New and interesting.} (20... f5 21. Rxa7 Kd8 22. Ra8+ Ke7 23. Ra5 Bh6 24. Nd5+ Kf7 25. Ne3+ Kg6 26. Nxf5 Rd2+ 27. Kc3 Rf2 28. Ne7+ Kf6 29. Nd5+ Kg7 30. Ra7+ Kg6 31. Ra6+ Kg7 32. Ra7+ Kg6 33. Ra6+ Kg7 34. Ra7+ {½-½ Carlsen,M (2847)-So,W (2770) FTX Crypto Cup KO rapid 2021 (3.23)}) 21. Be6 {[%emt 0:00:26][%cal Oc3d5]} Rd6 {[%emt 0:00:00]} 22. Bc4 {[%emt 0:00:23]} Rd4 {[%emt 0:00:00]} 23. Be6 {[%emt 0:00:06][%cal Oc3d5]} Rd6 {[%emt 0:00:00]} 24. Bc4 {[%emt 0:00:04] Weighted Error Value: White=0.03 (flawless) /Black=0.01 (flawless)   Inaccurate:     	---       	Black=1      OK:         	White=12    	Black=8      Best:        	---       	Black=4      Strong:       	---       	Black=1} 1/2-1/2

[Event "AUT Bundesliga 2024-25"]
[Site "Austria"]
[Date "2025.04.05"]
[Round "10.28"]
[White "Peyrer, Konstantin"]
[Black "Bosiocic, Marin"]
[Result "1-0"]
[Annotator "RC"]
[ECO "D37"]
[WhiteElo "2451"]
[BlackElo "2522"]
[PlyCount "121"]
[EventDate "2024.08.28"]
[EventType "team-tourn"]
[EventCountry "AUT"]
[SourceTitle "playchess.com"]
[Source "ChessBase"]
[SourceQuality "1"]
[TimeControl "40/5400+30:1800+30"]

1. d4 {[%emt 0:00:05]} Nf6 {[%emt 0:00:07]} 2. c4 {[%emt 0:00:07]} e6 {[%emt 0:00:06]} 3. Nc3 {[%emt 0:00:07]} d5 {[%emt 0:00:05]} 4. Nf3 {[%emt 0:00:47]} h6 {[%emt 0:00:07]} 5. g3 {[%emt 0:00:20]} Bd6 {[%emt 0:00:11]} 6. Bg2 {[%emt 0:00:17]} Nc6 {[%emt 0:00:07]} 7. O-O {[%emt 0:01:03]} O-O {[%emt 0:00:05]} 8. b3 {[%emt 0:01:29]} dxc4 {[%emt 0:00:08]} 9. bxc4 {[%emt 0:00:03]} e5 {[%emt 0:00:06]} 10. d5 {[%emt 0:03:29]} Nb4 {[%emt 0:01:07]} 11. e4 {[%emt 0:02:57]} Re8 {[%emt 0:03:21]} 12. Bb2 {[%emt 0:06:18]} Bg4 {[%emt 0:04:26]} 13. h3 {[%emt 0:01:09]} Bh5 {[%emt 0:00:05]} 14. a3 {[%emt 0:00:24]} Na6 {[%emt 0:00:07]} 15. Qc2 {[%emt 0:00:24]} Nd7 {[%emt 0:01:56]} 16. Nh4 {[%emt 0:15:44]} Nb6 {[%emt 0:03:38]} 17. Na4 {[%emt 0:00:57]} Qd7 {[%emt 0:05:58]} 18. Nxb6 {[%emt 0:01:08]} axb6 {[%emt 0:00:06]} 19. f4 {[%emt 0:02:23]} exf4 {[%emt 0:07:40]} 20. gxf4 {[%emt 0:00:53]} Nc5 {[%emt 0:00:07]} 21. Rae1 {[%emt 0:05:22]} Na4 {[%emt 0:07:58]} 22. Ba1 {[%emt 0:10:24]} Bxa3 {[%emt 0:00:11]} 23. Kh2 {[%emt 0:01:00]} Bf8 {[%emt 0:02:43]} 24. Re3 {[%emt 0:04:45]} Nc5 {[%emt 0:11:28]} 25. Rg3 {[%emt 0:07:51]} Qd8 {[%emt 0:05:58]} 26. Nf5 {[%emt 0:08:40]} Bg6 {[%emt 0:00:33]} 27. e5 {[%emt 0:00:09]} Kh7 {[%emt 0:04:21]} 28. Bd4 {[%emt 0:01:20]} Qd7 {[%emt 0:10:28]} 29. Rxg6 {[%emt 0:01:14]} fxg6 {[%emt 0:00:08]} 30. Nh4 {[%emt 0:00:04]} Kg8 {[%emt 0:01:11]} 31. Qxg6 {[%emt 0:05:36]} Qf7 {[%emt 0:02:38]} 32. Qg4 {[%emt 0:02:37]} Ra2 {[%emt 0:00:33]} 33. f5 {[%emt 0:01:46]} Bd6 {[%emt 0:15:43]} 34. exd6 {[%emt 0:02:11]} cxd6 {[%emt 0:00:53]} 35. f6 {[%emt 0:01:17]} Re4 {[%emt 0:00:42]} 36. Qc8+ {[%emt 0:00:09]} Re8 {[%emt 0:00:05]} 37. Qf5 {[%emt 0:00:31]} Ree2 {[%emt 0:02:10]} 38. fxg7 {[%emt 0:01:03]} Qxf5 {[%emt 0:00:36]} 39. Rxf5 {[%emt 0:00:05]} Nd7 {[%emt 0:00:08]} 40. Rh5 {[%emt 0:02:32]} Ne5 {[%emt 0:02:26]} 41. Bxe5 {[%emt 0:31:58]} dxe5 {[%emt 0:30:08]} 42. Rxh6 {[%emt 0:00:16]} Kxg7 {[%emt 0:00:48]} 43. Rxb6 {[%emt 0:01:14]} Rac2 {[%emt 0:06:32]} 44. Rxb7+ {[%emt 0:00:00]} Kf6 {[%emt 0:00:00]} 45. Rb6+ {[%emt 0:00:00]} Kf7 {[%emt 0:00:00]} 46. Rc6 {[%emt 0:00:00]} Re4 {[%emt 0:00:00]} 47. Kg3 {[%emt 0:00:00]} Rc3+ {[%emt 0:00:00]} 48. Bf3 {[%emt 0:00:00]} Rd4 {[%emt 0:00:00]} 49. Ng6 {[%emt 0:00:00]} e4 {[%emt 0:00:00]} 50. Ne5+ {[%emt 0:00:00]} Kf8 {[%emt 0:00:00]} 51. Rf6+ {[%emt 0:00:00]} Ke7 {[%emt 0:00:00]} 52. Rf4 {[%emt 0:00:00]} Kd6 {[%emt 0:00:00]} 53. Nf7+ {[%emt 0:00:00]} Ke7 {[%emt 0:00:00]} 54. Ng5 {[%emt 0:00:00]} Rcxc4 {[%emt 0:00:00]} 55. Rxe4+ {[%emt 0:00:00]} Kf6 {[%emt 0:00:00]} 56. d6 {[%emt 0:00:44]} Rxe4 {[%emt 0:02:37]} 57. Nxe4+ {[%emt 0:00:10]} Ke5 {[%emt 0:01:06]} 58. d7 {[%emt 0:00:07]} Rd4 {[%emt 0:00:12]} 59. Nc5 {[%emt 0:00:06]} Kf6 {[%emt 0:00:30]} 60. Bg4 {[%emt 0:00:27]} Ke7 {[%emt 0:00:05]} 61. Nb7 {[%emt 0:00:51]} 1-0

[Event "AUT Bundesliga 2024-25"]
[Site "Austria"]
[Date "2025.04.05"]
[Round "10.29"]
[White "Livaic, Leon"]
[Black "Froewis, Georg"]
[Result "*"]
[Annotator "TA"]
[ECO "C11"]
[WhiteElo "2536"]
[BlackElo "2429"]
[PlyCount "53"]
[EventDate "2024.08.28"]
[EventType "team-tourn"]
[EventCountry "AUT"]
[SourceTitle "playchess.com"]
[Source "ChessBase"]
[SourceQuality "1"]
[TimeControl "40/5400+30:1800+30"]

{[%evp 16,53,20,5,0,7,3,1,9,6,26,21,22,16,19,14,124,122,120,121,123,117,120,103,145,139,158,158,155,155,144,127,188,179,194,208,242,230,269,262]} 1. e4 {[%emt 0:00:05]} e6 {[%emt 0:00:04]} 2. d4 {[%emt 0:00:07]} d5 {[%emt 0:00:03]} 3. Nc3 {[%emt 0:00:11]} Nf6 {[%emt 0:00:12]} 4. e5 {[%emt 0:00:24]} Nfd7 {[%emt 0:00:05]} 5. f4 {[%emt 0:00:09]} c5 {[%emt 0:00:03]} 6. Nf3 {[%emt 0:00:06]} Nc6 {[%emt 0:00:04]} 7. Be3 {[%emt 0:00:06]} Be7 {[%emt 0:00:55]} 8. Qd2 {[%emt 0:00:30]} a6 {[%emt 0:00:16]} 9. Be2 {[%emt 0:04:18]} O-O {[%emt 0:00:40] C11: French: Classical System: 4 e5 and 4 Bg5 dxe4.} 10. O-O {[%emt 0:00:06]} b5 {[%emt 0:00:20]} 11. Nd1 {[%emt 0:01:00][%cal Bc3d1,Bd1f2,Bf2d3][%mdl 32]} f5 {[%emt 0:02:30] The position is equal.} 12. c3 {[%emt 0:05:24][%cal Bc2c3,Bc3d4][%mdl 32]} Bb7 {[%emt 0:04:24]} 13. Nf2 {[%emt 0:01:38]} Rc8 $146 {[%emt 0:04:29]} (13... h6 14. g4 Qe8 15. gxf5 Rxf5 16. Bd3 Rf8 17. Nd1 Kh8 18. Qg2 Nb6 19. Kh1 cxd4 20. cxd4 {1-0 Murza,A (2239)-Zieba,Z (2270) POL-ch59 sf1 email 2014}) 14. Ng5 {[%emt 0:11:24]} Bxg5 {[%emt 0:10:19]} 15. fxg5 {[%emt 0:01:13]} cxd4 {[%emt 0:00:05]} (15... Qa5 $11) 16. cxd4 $16 {[%emt 0:00:04]} Qa5 {[%emt 0:00:11]} 17. Qxa5 {[%emt 0:01:14]} Nxa5 {[%emt 0:00:03]} 18. Nd3 {[%emt 0:00:22]} Nc4 {[%emt 0:05:23]} 19. Bc1 {[%emt 0:00:31][%cal Be3c1,Bc1a3,Ba3d6][%mdl 32]} Nb8 {[%emt 0:06:17]} 20. b3 {[%emt 0:03:31]} Nc6 {[%emt 0:01:06] [#]} 21. Rf4 {[%emt 0:05:41]} Nb6 {[%emt 0:05:06]} 22. Ba3 {[%emt 0:01:27]} Rf7 {[%emt 0:01:00] Black is weak on the dark squares} 23. Kf2 {[%emt 0:11:01]} Nd7 {[%emt 0:02:44]} (23... Nd8 $16 {might work better.} 24. Bd6 g6) 24. Ke3 $18 {[%emt 0:00:38]} Ne7 {[%emt 0:00:39]} 25. Rff1 {[%emt 0:02:59]} a5 {[%emt 0:03:49]} 26. Bd6 {[%emt 0:02:50]} b4 {[%emt 0:05:31] Mistake:       	---       	Black=2      Inaccurate:     	---       	Black=1      OK:         	White=9     	Black=6} 27. Nf4 {[%emt 0:06:57] Weighted Error Value: White=0.03 (flawless) /Black=0.23 (precise)} *

[Event "AUT Bundesliga 2024-25"]
[Site "Austria"]
[Date "2025.04.05"]
[Round "10.30"]
[White "Balint, Peter"]
[Black "Koellner, Ruben Gideon"]
[Result "0-1"]
[Annotator "RC"]
[ECO "C41"]
[WhiteElo "2366"]
[BlackElo "2499"]
[PlyCount "120"]
[EventDate "2024.08.28"]
[EventType "team-tourn"]
[EventCountry "AUT"]
[SourceTitle "playchess.com"]
[Source "ChessBase"]
[SourceQuality "1"]
[TimeControl "40/5400+30:1800+30"]

1. e4 {[%emt 0:00:03]} d6 {[%emt 0:00:19]} 2. d4 {[%emt 0:00:04]} Nf6 {[%emt 0:00:04]} 3. Nc3 {[%emt 0:00:04]} e5 {[%emt 0:00:05]} 4. Nf3 {[%emt 0:00:04]} Nbd7 {[%emt 0:00:05]} 5. Bc4 {[%emt 0:00:10]} Be7 {[%emt 0:00:09]} 6. O-O {[%emt 0:00:09]} c6 {[%emt 0:01:27]} 7. a4 {[%emt 0:00:05]} O-O {[%emt 0:00:08]} 8. Re1 {[%emt 0:03:45]} b6 {[%emt 0:01:00]} 9. d5 {[%emt 0:10:53]} cxd5 {[%emt 0:01:43]} 10. Bxd5 {[%emt 0:02:40]} Nxd5 {[%emt 0:02:18]} 11. Nxd5 {[%emt 0:00:07]} Nf6 {[%emt 0:21:48]} 12. Nxf6+ {[%emt 0:03:01]} Bxf6 {[%emt 0:00:06]} 13. c4 {[%emt 0:01:49]} Be6 {[%emt 0:00:55]} 14. b3 {[%emt 0:00:30]} a6 {[%emt 0:05:37]} 15. Qd3 {[%emt 0:05:48]} Be7 {[%emt 0:03:57]} 16. Be3 {[%emt 0:02:11]} Qc7 {[%emt 0:13:20]} 17. Nd2 {[%emt 0:08:14]} Qb7 {[%emt 0:00:53]} 18. f3 {[%emt 0:07:41]} f5 {[%emt 0:08:09]} 19. exf5 {[%emt 0:03:53]} Bxf5 {[%emt 0:01:49]} 20. Ne4 {[%emt 0:00:15]} b5 {[%emt 0:03:47]} 21. axb5 {[%emt 0:07:52]} axb5 {[%emt 0:00:20]} 22. Rxa8 {[%emt 0:12:35]} Qxa8 {[%emt 0:00:39]} 23. Rd1 {[%emt 0:00:14]} Bg6 {[%emt 0:17:22]} 24. cxb5 {[%emt 0:16:02]} Rd8 {[%emt 0:00:19]} 25. b6 {[%emt 0:01:27]} d5 {[%emt 0:02:28]} 26. Qb5 {[%emt 0:05:35]} dxe4 {[%emt 0:00:19]} 27. Rxd8+ {[%emt 0:04:32]} Qxd8 {[%emt 0:00:20]} 28. Kf2 {[%emt 0:01:22]} Be8 {[%emt 0:09:16]} 29. Qxe5 {[%emt 0:00:09]} Qd6 {[%emt 0:00:36]} 30. Qxe4 {[%emt 0:00:33]} Bc6 {[%emt 0:00:35]} 31. Qg4 {[%emt 0:01:22]} Qd5 {[%emt 0:03:09]} 32. Bd4 {[%emt 0:02:16]} Bf8 {[%emt 0:00:04]} 33. b4 {[%emt 0:00:38]} h5 {[%emt 0:01:00]} 34. Qf4 {[%emt 0:00:39]} Bxb4 {[%emt 0:00:30]} 35. Qe3 {[%emt 0:00:24]} Bd6 {[%emt 0:01:08]} 36. h4 {[%emt 0:00:16]} Qa2+ {[%emt 0:00:47]} 37. Kg1 {[%emt 0:00:29]} Qb1+ {[%emt 0:00:32]} 38. Kf2 {[%emt 0:00:04]} Qa2+ {[%emt 0:00:06]} 39. Kg1 {[%emt 0:00:04]} Bg3 {[%emt 0:01:25]} 40. Qc1 {[%emt 0:00:27]} Qd5 {[%emt 0:00:37]} 41. Qb2 {[%emt 0:31:44]} Bb7 {[%emt 0:16:22]} 42. Qb4 {[%emt 0:00:00]} g6 {[%emt 0:05:38]} 43. Qc3 {[%emt 0:00:00]} Kf7 {[%emt 0:07:05]} 44. Kh1 {[%emt 0:00:00]} Qd8 {[%emt 0:02:05]} 45. Kg1 {[%emt 0:00:00]} Bxh4 {[%emt 0:01:33]} 46. Qc4+ {[%emt 0:00:00]} Qd5 {[%emt 0:00:06]} 47. Qc7+ {[%emt 0:00:00]} Be7 {[%emt 0:00:08]} 48. Qf4+ {[%emt 0:00:00]} Ke6 {[%emt 0:00:21]} 49. Qe3+ {[%emt 0:00:00]} Kd7 {[%emt 0:00:05]} 50. Qc3 {[%emt 0:00:00]} Bd6 {[%emt 0:00:25]} 51. Qe3 {[%emt 0:00:00]} Bg3 {[%emt 0:01:03]} 52. Qc3 {[%emt 0:00:00]} Qf5 {[%emt 0:01:29]} 53. Qb3 {[%emt 0:00:00]} Qd5 {[%emt 0:00:16]} 54. Qc3 {[%emt 0:00:00]} h4 {[%emt 0:00:41]} 55. Qe3 {[%emt 0:00:00]} Qe6 {[%emt 0:00:27]} 56. Qd2 {[%emt 0:00:00]} Qe1+ {[%emt 0:00:08]} 57. Qxe1 {[%emt 0:00:00]} Bxe1 {[%emt 0:00:05]} 58. Bf2 {[%emt 0:00:00]} Bxf2+ {[%emt 0:00:05]} 59. Kxf2 {[%emt 0:00:00]} Kc6 {[%emt 0:01:02]} 60. Ke3 {[%emt 0:00:00]} Bc8 {[%emt 0:00:09]} 0-1

[Event "AUT Bundesliga 2024-25"]
[Site "Austria"]
[Date "2025.04.05"]
[Round "10.31"]
[White "Hodysh, Yuriy"]
[Black "Maghsoodloo, Parham"]
[Result "0-1"]
[Annotator "TA"]
[ECO "D45"]
[WhiteElo "2401"]
[BlackElo "2684"]
[PlyCount "62"]
[EventDate "2024.08.28"]
[EventType "team-tourn"]
[EventCountry "AUT"]
[SourceTitle "playchess.com"]
[Source "ChessBase"]
[SourceQuality "1"]
[TimeControl "40/5400+30:1800+30"]

{[%evp 13,62,25,28,18,37,37,45,48,46,14,11,13,11,6,6,7,2,0,0,5,0,-22,-26,-28,-40,-35,-19,-28,-22,-42,-29,-45,-28,-23,-18,-26,0,0,0,-125,-102,-539,-541,-499,-487,-763,-761,-894,-811,-29995,-29996]} 1. d4 {[%emt 0:00:05]} Nf6 {[%emt 0:00:06]} 2. c4 {[%emt 0:00:05]} e6 {[%emt 0:00:04]} 3. Nf3 {[%emt 0:00:04]} d5 {[%emt 0:00:04]} 4. Nc3 {[%emt 0:00:06]} c6 {[%emt 0:00:04]} 5. e3 {[%emt 0:00:05]} a6 {[%emt 0:00:04]} 6. b3 {[%emt 0:01:18]} Bb4 {[%emt 0:01:14]} 7. Bd2 {[%emt 0:00:05]} Nbd7 {[%emt 0:00:07]} 8. Bd3 {[%emt 0:00:04] D45: Semi-Slav: 5 e3.} dxc4 {[%emt 0:00:07]} 9. bxc4 {[%emt 0:02:14]} e5 {[%emt 0:00:06] [#]} 10. Qc2 {[%emt 0:00:27] White is slightly better.} (10. Nxe5 $2 Nxe5 11. Be2 Ng6 $19) 10... Qe7 {[%emt 0:01:11]} 11. dxe5 $146 {[%emt 0:06:29]} (11. Bf5 exd4 12. Nxd4 g6 13. Bh3 Ne5 14. Bxc8 Rxc8 15. Nb1 O-O 16. O-O c5 17. Nb3 Rfd8 18. Bc1 Nd3 19. Bb2 Ng4 20. Nc3 Qe5 {0-1 Wohlfahrt,H (2376)-Blohberger,F (2410) AUT-ch Rapid 2024 (5)}) 11... Nxe5 {[%emt 0:05:54]} 12. Nxe5 {[%emt 0:01:29]} Qxe5 {[%emt 0:00:11]} 13. O-O {[%emt 0:03:50]} O-O {[%emt 0:00:21][%cal Bh8f8,Bf8d8,Bd8d5,Bd5h5][%mdl 32]} 14. Ne4 {[%emt 0:13:42][%cal Bc3e4,Be4d2,Bd2f3][%mdl 32]} Bxd2 {[%emt 0:02:14]} 15. Nxd2 {[%emt 0:01:37] A sharp opening} Rd8 {[%emt 0:06:11]} 16. Nf3 {[%emt 0:00:20]} Qe7 {[%emt 0:00:07]} 17. c5 {[%emt 0:13:45]} Rd5 {[%emt 0:12:42]} 18. Rac1 {[%emt 0:00:38]} g6 {[%emt 0:00:07]} 19. Nd4 {[%emt 0:03:27]} Rh5 {[%emt 0:09:19]} 20. Rfe1 {[%emt 0:01:08]} Nd7 {[%emt 0:01:20][%cal Bf6d7,Bd7e5,Be5f3][%mdl 32]} 21. Nb3 {[%emt 0:10:07]} Qh4 {[%emt 0:00:25] Black attacks} 22. h3 {[%emt 0:00:04]} Ne5 $36 {[%emt 0:00:04][%cal Oc8h3][%mdl 2048] Black is pushing.} 23. Be4 $1 {[%emt 0:09:25]} f5 {[%emt 0:12:39]} (23... Bxh3 24. gxh3 Rg5+ 25. Bg2 Qxh3 26. f4 Nf3+ 27. Kf1 Nh2+ 28. Kg1 $17) 24. Bd3 {[%emt 0:00:15] Black must now prevent Be2.} f4 {[%emt 0:01:42]} (24... Nf3+ $5 25. Kf1 (25. gxf3 Qxh3 26. Qc4+ Kf8) 25... Nxe1 26. Bc4+ Kg7 27. Rxe1 Qf6 $15) 25. exf4 $1 {[%emt 0:03:47]} Nf3+ {[%emt 0:10:15]} 26. Kf1 {[%emt 0:00:05]} (26. gxf3 $11 Qxh3 27. Qc4+ (27. Re8+ Kg7 $11) 27... Kf8 28. Re8+ Kxe8 29. Qg8+ Ke7 30. Qg7+ Ke8 (30... Kd8 $2 31. Qf8+ Kd7 32. Qd6+ Ke8 33. Re1+ $18) 31. Re1+ Be6 32. Qg8+ (32. Qxb7 $2 Qh1#) 32... Ke7 (32... Kd7 33. Qg7+ Ke8 34. Bxg6+ hxg6 35. Qg8+ Ke7 36. Qg7+ Ke8 37. Qg8+ Ke7 38. Qg7+ Kd8 39. Qf8+ Kc7 40. Qd6+ Kc8 41. Qf8+ Kc7 42. Qd6+ Kc8 43. Qf8+ Kc7 $11) 33. Qg7+ (33. Qxa8 $2 Qh1#) 33... Ke8) 26... Bxh3 $17 {[%emt 0:01:17] Black is more active.} 27. Bc4+ $2 {[%emt 0:04:30][%mdl 8192] Now White is beyond hope.} (27. Qc4+ $17 Kf8 28. gxh3 (28. Re3 $2 Bxg2+ 29. Ke2 Rd8 $19) 28... Qxh3+ 29. Ke2) 27... Kg7 $19 {[%emt 0:04:47][%cal Oh3g2]} 28. Qc3+ {[%emt 0:04:45] [#]} Kh6 $1 {[%emt 0:00:10][%cal Oh3g2] ...Bxg2+! is the strong threat.} 29. Be6 {[%emt 0:04:53]} (29. Re3 $142 Bxg2+ 30. Ke2 Qxf4 (30... Nh2 31. Nd4 $17) 31. Kd1) 29... Nh2+ {[%emt 0:02:09]} ({Inferior is} 29... Nxe1 30. gxh3 (30. Bxh3 Nxg2 31. Bxg2 Qxf4 $11) 30... Qxf4 31. Rxe1 $16 (31. Kxe1 $2 Re5+ 32. Kf1 Rxe6 $19)) 30. Kg1 {[%emt 0:00:19]} Bxe6 {[%emt 0:00:12]} 31. Rxe6 {[%emt 0:00:19]} Ng4 {[%emt 0:00:05] Weighted Error Value: White=0.80/Black=0.08 (flawless)   Loses game:     	White=1     	---        Mistake:       	White=2     	---        Inaccurate:     	White=1     	Black=1      OK:         	White=6     	Black=8      Best:        	White=1     	Black=4      Strong:       	White=2     	Black=1} (31... Qxf4 $2 {is the wrong capture.} 32. Rf6 Qe4 33. Qd2+ Rg5 34. f3 $18 (34. Kxh2 $2 Qxg2#)) 0-1